[Event "*** SCC Grand Prix: Titled Tuesday Blitz"]
[Site "Chess.com"]
[Date "2020.10.13"]
[Round "10"]
[White "temus_galaktionov"]
[Black "Gulkov_Igor"]
[Result "1-0"]
[WhiteElo "2642"]
[BlackElo "2475"]
[TimeControl "180+1"]
[EndTime "11:53:32 PDT"]
[Termination "temus_galaktionov won by resignation"]

1. d4 {[%clk 0:03:00.9]} 1... Nf6 {[%clk 0:02:59.5]} 2. Nf3 {[%clk 0:03:01.8]}
2... g6 {[%clk 0:02:57.7]} 3. c4 {[%clk 0:03:02]} 3... Bg7 {[%clk 0:02:57.4]} 4.
Nc3 {[%clk 0:03:02.6]} 4... d6 {[%clk 0:02:57.7]} 5. e4 {[%clk 0:03:02.4]} 5...
O-O {[%clk 0:02:57.6]} 6. Be2 {[%clk 0:03:03.3]} 6... Bg4 {[%clk 0:02:57.2]} 7.
Ng1 {[%clk 0:03:02.7]} 7... Bc8 {[%clk 0:02:56.2]} 8. Nf3 {[%clk 0:03:02.4]}
8... Bg4 {[%clk 0:02:55.7]} 9. Ng1 {[%clk 0:03:02.2]} 9... Bc8 {[%clk
0:02:55.1]} 10. Be3 {[%clk 0:03:00.7]} 10... e5 {[%clk 0:02:50]} 11. d5 {[%clk
0:02:57.3]} 11... Nbd7 {[%clk 0:02:40.9]} 12. g4 {[%clk 0:02:56.2]} 12... Nc5
{[%clk 0:02:40.4]} 13. f3 {[%clk 0:02:53.8]} 13... h5 {[%clk 0:02:39.5]} 14. g5
{[%clk 0:02:46.7]} 14... Nh7 {[%clk 0:02:37.3]} 15. h4 {[%clk 0:02:45.5]} 15...
f6 {[%clk 0:02:36.7]} 16. b4 {[%clk 0:02:44.4]} 16... Na6 {[%clk 0:02:35.9]} 17.
a3 {[%clk 0:02:32.8]} 17... fxg5 {[%clk 0:02:34.6]} 18. hxg5 {[%clk 0:02:33.7]}
18... Nxg5 {[%clk 0:02:30]} 19. Qd2 {[%clk 0:02:34.6]} 19... Bf6 {[%clk
0:02:23.4]} 20. O-O-O {[%clk 0:02:33.1]} 20... Nf7 {[%clk 0:02:22.1]} 21. Nh3
{[%clk 0:02:31.9]} 21... Bxh3 {[%clk 0:01:56.4]} 22. Rxh3 {[%clk 0:02:32.8]}
22... Bg5 {[%clk 0:01:56.5]} 23. Rg1 {[%clk 0:02:28.7]} 23... Bxe3 {[%clk
0:01:51.6]} 24. Qxe3 {[%clk 0:02:29.6]} 24... Kh7 {[%clk 0:01:50.1]} 25. Rhg3
{[%clk 0:01:53.1]} 25... Rg8 {[%clk 0:01:36.7]} 26. f4 {[%clk 0:01:51.2]} 26...
Qf6 {[%clk 0:00:58.2]} 27. f5 {[%clk 0:01:50.7]} 27... gxf5 {[%clk 0:00:52]} 28.
exf5 {[%clk 0:01:51.6]} 28... Rxg3 {[%clk 0:00:46.4]} 29. Qxg3 {[%clk
0:01:52.4]} 29... Qh6+ {[%clk 0:00:25]} 30. Kc2 {[%clk 0:01:51]} 30... Kh8
{[%clk 0:00:24.6]} 31. Ne4 {[%clk 0:01:47.9]} 31... h4 {[%clk 0:00:24.1]} 32.
Qg6 {[%clk 0:01:31.6]} 32... Qxg6 {[%clk 0:00:23.6]} 33. fxg6 {[%clk 0:01:31.7]}
33... Nh6 {[%clk 0:00:23.6]} 34. g7+ {[%clk 0:01:29.7]} 34... Kg8 {[%clk
0:00:20.5]} 35. Bh5 {[%clk 0:01:30.6]} 1-0

[Event "*** SCC Grand Prix: Titled Tuesday Blitz"]
[Site "Chess.com"]
[Date "2020.10.13"]
[Round "10"]
[White "frederiksvane"]
[Black "Ave_Mariia"]
[Result "1-0"]
[WhiteElo "2696"]
[BlackElo "2523"]
[TimeControl "180+1"]
[EndTime "11:53:39 PDT"]
[Termination "frederiksvane won by resignation"]

1. e4 {[%clk 0:03:00.9]} 1... c5 {[%clk 0:03:00.1]} 2. Nf3 {[%clk 0:02:58.5]}
2... d6 {[%clk 0:03:00.6]} 3. Bb5+ {[%clk 0:02:58.4]} 3... Nd7 {[%clk
0:03:00.1]} 4. a4 {[%clk 0:02:54.3]} 4... a6 {[%clk 0:02:58.3]} 5. Bxd7+ {[%clk
0:02:54.4]} 5... Bxd7 {[%clk 0:02:57.9]} 6. a5 {[%clk 0:02:55.2]} 6... Nf6
{[%clk 0:02:57]} 7. d3 {[%clk 0:02:55.8]} 7... g6 {[%clk 0:02:55.3]} 8. O-O
{[%clk 0:02:56.1]} 8... Bg7 {[%clk 0:02:55.2]} 9. e5 {[%clk 0:02:56.8]} 9...
dxe5 {[%clk 0:02:51.8]} 10. Nxe5 {[%clk 0:02:57.7]} 10... O-O {[%clk 0:02:48.9]}
11. Qe2 {[%clk 0:02:56.4]} 11... Nd5 {[%clk 0:02:41.9]} 12. Re1 {[%clk
0:02:52.7]} 12... Be6 {[%clk 0:02:37.4]} 13. Nd2 {[%clk 0:02:50.2]} 13... f6
{[%clk 0:02:02.5]} 14. Nxg6 {[%clk 0:02:45]} 14... hxg6 {[%clk 0:01:55.9]} 15.
Qxe6+ {[%clk 0:02:44.9]} 15... Kh7 {[%clk 0:01:54.4]} 16. Ne4 {[%clk 0:02:38.6]}
16... Nc7 {[%clk 0:01:45.4]} 17. Qh3+ {[%clk 0:02:33.5]} 17... Kg8 {[%clk
0:01:45.6]} 18. Nxc5 {[%clk 0:02:34.1]} 18... e5 {[%clk 0:01:46]} 19. Ne6 {[%clk
0:02:26.8]} 19... Nxe6 {[%clk 0:01:44.7]} 20. Qxe6+ {[%clk 0:02:27.7]} 20... Rf7
{[%clk 0:01:44.3]} 21. Be3 {[%clk 0:02:25.8]} 21... Qc7 {[%clk 0:01:40.9]} 22.
Qb3 {[%clk 0:02:03.5]} 22... Kh8 {[%clk 0:01:37.5]} 23. Ra4 {[%clk 0:02:02.6]}
23... Bf8 {[%clk 0:01:24]} 24. Rh4+ {[%clk 0:02:00]} 24... Rh7 {[%clk
0:01:24.1]} 25. Rxh7+ {[%clk 0:01:59]} 25... Qxh7 {[%clk 0:01:25]} 26. d4 {[%clk
0:01:55.2]} 26... Bd6 {[%clk 0:01:16.8]} 27. dxe5 {[%clk 0:01:52.6]} 27... Bxe5
{[%clk 0:01:16.9]} 28. h3 {[%clk 0:01:52.8]} 28... Rc8 {[%clk 0:01:11.7]} 29. c3
{[%clk 0:01:27.6]} 29... g5 {[%clk 0:01:06.5]} 30. Bxg5 {[%clk 0:01:17.2]} 30...
Rg8 {[%clk 0:00:50.6]} 31. Rxe5 {[%clk 0:00:57.6]} 31... Qb1+ {[%clk 0:00:50.5]}
32. Kh2 {[%clk 0:00:57.7]} 32... fxe5 {[%clk 0:00:51]} 33. Bf6+ {[%clk
0:00:57.7]} 33... Kh7 {[%clk 0:00:50.9]} 34. Qf7+ {[%clk 0:00:57.9]} 34... Kh6
{[%clk 0:00:49.3]} 35. Qxg8 {[%clk 0:00:58.2]} 35... Qf5 {[%clk 0:00:38.4]} 36.
Qg7+ {[%clk 0:00:56.8]} 36... Kh5 {[%clk 0:00:38.5]} 37. g4+ {[%clk 0:00:57.7]}
1-0

[Event "*** SCC Grand Prix: Titled Tuesday Blitz"]
[Site "Chess.com"]
[Date "2020.10.13"]
[Round "10"]
[White "rpragchess"]
[Black "tornikesanikidze"]
[Result "0-1"]
[WhiteElo "2885"]
[BlackElo "2720"]
[TimeControl "180+1"]
[EndTime "11:53:43 PDT"]
[Termination "tornikesanikidze won on time"]

1. Nf3 {[%clk 0:03:00.9]} 1... Nf6 {[%clk 0:02:59.6]} 2. g3 {[%clk 0:02:59.7]}
2... g6 {[%clk 0:03:00]} 3. Bg2 {[%clk 0:03:00.3]} 3... Bg7 {[%clk 0:03:00.4]}
4. O-O {[%clk 0:03:00.9]} 4... O-O {[%clk 0:03:00.6]} 5. d4 {[%clk 0:03:01.7]}
5... d5 {[%clk 0:03:00.7]} 6. c3 {[%clk 0:03:01.4]} 6... b6 {[%clk 0:02:58.4]}
7. c4 {[%clk 0:03:01.4]} 7... c6 {[%clk 0:02:54.7]} 8. Nc3 {[%clk 0:02:59.8]}
8... dxc4 {[%clk 0:02:51.3]} 9. Ne5 {[%clk 0:02:57.5]} 9... Be6 {[%clk
0:02:51.3]} 10. Nxc6 {[%clk 0:02:43.2]} 10... Nxc6 {[%clk 0:02:52.2]} 11. Bxc6
{[%clk 0:02:43.4]} 11... Rc8 {[%clk 0:02:48.3]} 12. Bg2 {[%clk 0:02:39.8]} 12...
Nd5 {[%clk 0:02:47.2]} 13. e4 {[%clk 0:02:35.4]} 13... Nb4 {[%clk 0:02:47.2]}
14. d5 {[%clk 0:02:19.1]} 14... Bd7 {[%clk 0:02:46.6]} 15. Be3 {[%clk
0:02:17.6]} 15... Nd3 {[%clk 0:02:44.4]} 16. Qd2 {[%clk 0:02:18]} 16... b5
{[%clk 0:02:41.5]} 17. a3 {[%clk 0:02:09]} 17... a5 {[%clk 0:02:39.3]} 18. Bh6
{[%clk 0:02:07.9]} 18... Bxh6 {[%clk 0:02:34.5]} 19. Qxh6 {[%clk 0:02:08.8]}
19... b4 {[%clk 0:02:27.5]} 20. axb4 {[%clk 0:02:04.2]} 20... axb4 {[%clk
0:02:28.4]} 21. Nd1 {[%clk 0:02:04.8]} 21... c3 {[%clk 0:02:21.5]} 22. bxc3
{[%clk 0:01:55.1]} 22... bxc3 {[%clk 0:02:22.4]} 23. Ne3 {[%clk 0:01:37.2]}
23... c2 {[%clk 0:02:19.6]} 24. Rac1 {[%clk 0:01:07.2]} 24... Nxc1 {[%clk
0:02:15.4]} 25. Rxc1 {[%clk 0:01:08.1]} 25... Qb6 {[%clk 0:02:08.9]} 26. Bf1
{[%clk 0:00:39.6]} 26... Ba4 {[%clk 0:01:44.6]} 27. Bh3 {[%clk 0:00:19.5]} 27...
Rc7 {[%clk 0:01:37.9]} 28. e5 {[%clk 0:00:13.3]} 28... Qb2 {[%clk 0:01:27.8]}
29. Ng4 {[%clk 0:00:10.7]} 29... Rb8 {[%clk 0:01:26.5]} 30. Bf1 {[%clk
0:00:05.5]} 30... Qxc1 {[%clk 0:01:22.2]} 31. Qxc1 {[%clk 0:00:04.7]} 31... Rb1
{[%clk 0:01:22.7]} 32. Qh6 {[%clk 0:00:01]} 32... Rxf1+ {[%clk 0:01:22.4]} 0-1

[Event "*** SCC Grand Prix: Titled Tuesday Blitz"]
[Site "Chess.com"]
[Date "2020.10.13"]
[Round "10"]
[White "kinga2008"]
[Black "fabianvivasz"]
[Result "0-1"]
[WhiteElo "2176"]
[BlackElo "2334"]
[TimeControl "180+1"]
[EndTime "11:53:48 PDT"]
[Termination "fabianvivasz won by resignation"]

1. e4 {[%clk 0:01:58.7]} 1... e5 {[%clk 0:02:58]} 2. Nf3 {[%clk 0:01:57.6]} 2...
Nc6 {[%clk 0:02:58]} 3. c3 {[%clk 0:01:56.3]} 3... d5 {[%clk 0:02:54.5]} 4. exd5
{[%clk 0:01:51.3]} 4... Qxd5 {[%clk 0:02:54.2]} 5. d4 {[%clk 0:01:52.2]} 5...
exd4 {[%clk 0:02:42.5]} 6. cxd4 {[%clk 0:01:40.6]} 6... Bg4 {[%clk 0:02:42]} 7.
Be2 {[%clk 0:01:34.6]} 7... Bb4+ {[%clk 0:02:33.7]} 8. Nc3 {[%clk 0:01:31.4]}
8... Bxf3 {[%clk 0:02:22.9]} 9. Bxf3 {[%clk 0:01:24.5]} 9... Qc4 {[%clk
0:02:23.3]} 10. Bxc6+ {[%clk 0:01:08.6]} 10... Qxc6 {[%clk 0:02:13]} 11. O-O
{[%clk 0:01:03.6]} 11... Ne7 {[%clk 0:02:00.5]} 12. Bf4 {[%clk 0:01:01.2]} 12...
O-O {[%clk 0:01:55.4]} 13. d5 {[%clk 0:00:57.9]} 13... Qd7 {[%clk 0:01:53.4]}
14. Qb3 {[%clk 0:00:37.9]} 14... Bxc3 {[%clk 0:01:51]} 15. bxc3 {[%clk
0:00:29.9]} 15... Qxd5 {[%clk 0:01:45.1]} 16. Bxc7 {[%clk 0:00:27.2]} 16... Rfc8
{[%clk 0:01:43.8]} 17. c4 {[%clk 0:00:03.6]} 17... Qc6 {[%clk 0:01:39.2]} 18.
Be5 {[%clk 0:00:02.4]} 18... Qxc4 {[%clk 0:01:37.9]} 19. Qxb7 {[%clk 0:00:02.5]}
19... Ng6 {[%clk 0:01:27.5]} 20. Bg3 {[%clk 0:00:02.5]} 20... h5 {[%clk
0:01:26.7]} 21. Qf3 {[%clk 0:00:02.9]} 21... h4 {[%clk 0:01:23.2]} 22. Bd6
{[%clk 0:00:03.1]} 22... Rc6 {[%clk 0:01:21.7]} 23. Ba3 {[%clk 0:00:02.6]} 23...
Rac8 {[%clk 0:01:19.8]} 24. h3 {[%clk 0:00:02.4]} 24... Qa4 {[%clk 0:01:14.8]}
25. Bb2 {[%clk 0:00:02.3]} 25... Rc2 {[%clk 0:01:11.4]} 26. Rab1 {[%clk
0:00:02.1]} 26... Qxa2 {[%clk 0:01:10.4]} 27. Bc1 {[%clk 0:00:01.1]} 27... Qxb1
{[%clk 0:01:09]} 0-1

[Event "*** SCC Grand Prix: Titled Tuesday Blitz"]
[Site "Chess.com"]
[Date "2020.10.13"]
[Round "10"]
[White "mfwagnerpeixoto"]
[Black "ChelsieMonica"]
[Result "1-0"]
[WhiteElo "2276"]
[BlackElo "2371"]
[TimeControl "180+1"]
[EndTime "11:53:53 PDT"]
[Termination "mfwagnerpeixoto won by resignation"]

1. d4 {[%clk 0:03:00.9]} 1... e6 {[%clk 0:02:50.1]} 2. c4 {[%clk 0:02:59.9]}
2... d5 {[%clk 0:02:50.4]} 3. Nf3 {[%clk 0:02:59.2]} 3... Nf6 {[%clk 0:02:45.1]}
4. g3 {[%clk 0:02:59.4]} 4... Bb4+ {[%clk 0:02:42.2]} 5. Bd2 {[%clk 0:02:56.2]}
5... Be7 {[%clk 0:02:43.1]} 6. Bg2 {[%clk 0:02:50.3]} 6... O-O {[%clk 0:02:44]}
7. O-O {[%clk 0:02:49.8]} 7... Nc6 {[%clk 0:02:41.3]} 8. cxd5 {[%clk 0:02:43.5]}
8... exd5 {[%clk 0:02:34.1]} 9. Bf4 {[%clk 0:02:35.3]} 9... Bf5 {[%clk
0:02:29.3]} 10. Nc3 {[%clk 0:02:34.1]} 10... a6 {[%clk 0:02:28]} 11. Ne5 {[%clk
0:02:28.3]} 11... Na7 {[%clk 0:01:56.7]} 12. Rc1 {[%clk 0:02:22.5]} 12... Rc8
{[%clk 0:01:49.4]} 13. Qb3 {[%clk 0:02:14.2]} 13... Rb8 {[%clk 0:01:41.4]} 14.
Nxd5 {[%clk 0:02:08.9]} 14... Nxd5 {[%clk 0:01:39.8]} 15. Bxd5 {[%clk
0:02:04.9]} 15... Kh8 {[%clk 0:01:29.4]} 16. Nxf7+ {[%clk 0:02:01.1]} 16... Rxf7
{[%clk 0:01:07.4]} 17. Bxc7 {[%clk 0:02:00.8]} 17... Qf8 {[%clk 0:01:04.8]} 18.
Bxb8 {[%clk 0:02:00.4]} 18... Qxb8 {[%clk 0:01:04.3]} 19. Bxf7 {[%clk
0:01:59.6]} 19... g6 {[%clk 0:01:01.1]} 20. Be6 {[%clk 0:01:53.6]} 20... Be4
{[%clk 0:00:55.7]} 21. Qc3 {[%clk 0:01:40]} 21... Bd6 {[%clk 0:00:45]} 22. Qc8+
{[%clk 0:01:31]} 22... Nxc8 {[%clk 0:00:43.2]} 23. Rxc8+ {[%clk 0:01:31.9]}
23... Qxc8 {[%clk 0:00:34.4]} 24. Bxc8 {[%clk 0:01:32.8]} 24... a5 {[%clk
0:00:33.2]} 25. b3 {[%clk 0:01:26.2]} 25... Kg7 {[%clk 0:00:32.1]} 26. f3 {[%clk
0:01:26.4]} 26... Bc6 {[%clk 0:00:31.5]} 27. e4 {[%clk 0:01:22.7]} 27... b6
{[%clk 0:00:31.4]} 28. d5 {[%clk 0:01:17.9]} 28... Bc5+ {[%clk 0:00:30.4]} 29.
Kg2 {[%clk 0:01:18.1]} 29... Bb5 {[%clk 0:00:30.3]} 30. Rd1 {[%clk 0:01:13.1]}
30... Kf8 {[%clk 0:00:30.4]} 31. a4 {[%clk 0:01:05.1]} 31... Be8 {[%clk
0:00:24.2]} 32. d6 {[%clk 0:00:57.8]} 32... Bc6 {[%clk 0:00:23.4]} 33. d7 {[%clk
0:00:54.7]} 1-0

[Event "*** SCC Grand Prix: Titled Tuesday Blitz"]
[Site "Chess.com"]
[Date "2020.10.13"]
[Round "10"]
[White "MaxLeto"]
[Black "Heineccius"]
[Result "0-1"]
[WhiteElo "2329"]
[BlackElo "2530"]
[TimeControl "180+1"]
[EndTime "11:53:57 PDT"]
[Termination "Heineccius won on time"]

1. g4 {[%clk 0:02:45.9]} 1... d5 {[%clk 0:02:56.9]} 2. Bg2 {[%clk 0:02:44.9]}
2... c6 {[%clk 0:02:53]} 3. g5 {[%clk 0:02:43.2]} 3... e5 {[%clk 0:02:51.3]} 4.
d4 {[%clk 0:02:43.8]} 4... Nd7 {[%clk 0:02:46.3]} 5. h4 {[%clk 0:02:32.5]} 5...
Bd6 {[%clk 0:02:35.3]} 6. Nc3 {[%clk 0:01:52.3]} 6... Ne7 {[%clk 0:02:30.8]} 7.
e4 {[%clk 0:01:47.7]} 7... O-O {[%clk 0:02:17.9]} 8. Be3 {[%clk 0:01:44.8]} 8...
exd4 {[%clk 0:02:13.4]} 9. Qxd4 {[%clk 0:00:59.7]} 9... c5 {[%clk 0:02:01.1]}
10. Qd2 {[%clk 0:00:55]} 10... d4 {[%clk 0:02:01.2]} 11. Nce2 {[%clk 0:00:48.9]}
11... Ne5 {[%clk 0:01:44.6]} 12. Bf4 {[%clk 0:00:42.3]} 12... Nc4 {[%clk
0:01:37.3]} 13. Qc1 {[%clk 0:00:13.8]} 13... Qa5+ {[%clk 0:01:36.3]} 14. Bd2
{[%clk 0:00:11.1]} 14... Qb6 {[%clk 0:01:30.1]} 15. b3 {[%clk 0:00:09.7]} 15...
Nxd2 {[%clk 0:01:25]} 16. Qxd2 {[%clk 0:00:10.6]} 16... c4 {[%clk 0:01:22.4]}
17. Nxd4 {[%clk 0:00:05.6]} 17... c3 {[%clk 0:00:57.8]} 18. Qd3 {[%clk
0:00:02.8]} 18... Ng6 {[%clk 0:00:45.8]} 19. Nge2 {[%clk 0:00:01.3]} 19... Nf4
{[%clk 0:00:33.6]} 0-1

[Event "*** SCC Grand Prix: Titled Tuesday Blitz"]
[Site "Chess.com"]
[Date "2020.10.13"]
[Round "10"]
[White "Ramu_K_FM_FT"]
[Black "A-S-00"]
[Result "0-1"]
[WhiteElo "2108"]
[BlackElo "2271"]
[TimeControl "180+1"]
[EndTime "11:53:58 PDT"]
[Termination "A-S-00 won by resignation"]

1. e4 {[%clk 0:03:00.9]} 1... c5 {[%clk 0:02:58.3]} 2. Nf3 {[%clk 0:03:01]} 2...
Nc6 {[%clk 0:02:57.6]} 3. d3 {[%clk 0:03:01.3]} 3... g6 {[%clk 0:02:55.4]} 4. g3
{[%clk 0:03:01.5]} 4... Bg7 {[%clk 0:02:55.6]} 5. Bg2 {[%clk 0:03:01.9]} 5... e6
{[%clk 0:02:54.6]} 6. O-O {[%clk 0:03:02.2]} 6... Nge7 {[%clk 0:02:54.8]} 7. Re1
{[%clk 0:03:00.5]} 7... O-O {[%clk 0:02:54.6]} 8. Nbd2 {[%clk 0:03:00]} 8... d5
{[%clk 0:02:54.7]} 9. exd5 {[%clk 0:02:59.1]} 9... exd5 {[%clk 0:02:54.6]} 10.
d4 {[%clk 0:02:59.2]} 10... Nxd4 {[%clk 0:02:49.9]} 11. Nxd4 {[%clk 0:02:58.8]}
11... Bxd4 {[%clk 0:02:49.7]} 12. Nb3 {[%clk 0:02:58.5]} 12... Bf6 {[%clk
0:02:47.8]} 13. Nxc5 {[%clk 0:02:56.7]} 13... b6 {[%clk 0:02:47.9]} 14. Nd3
{[%clk 0:02:48.9]} 14... Bb7 {[%clk 0:02:47.7]} 15. Bh6 {[%clk 0:02:46.7]} 15...
Re8 {[%clk 0:02:47.2]} 16. Qd2 {[%clk 0:02:40.2]} 16... Nf5 {[%clk 0:02:34]} 17.
Rxe8+ {[%clk 0:02:38.6]} 17... Qxe8 {[%clk 0:02:34.1]} 18. Re1 {[%clk
0:02:38.9]} 18... Qb5 {[%clk 0:02:26]} 19. Bf4 {[%clk 0:02:27.2]} 19... h5
{[%clk 0:02:01.1]} 20. Be5 {[%clk 0:02:25.4]} 20... Bxe5 {[%clk 0:01:56.1]} 21.
Rxe5 {[%clk 0:02:24.5]} 21... Nd6 {[%clk 0:01:49.5]} 22. Qh6 {[%clk 0:02:07.9]}
22... Re8 {[%clk 0:01:43.9]} 23. Rg5 {[%clk 0:01:52.9]} 23... Qd7 {[%clk
0:01:29.7]} 24. Ne5 {[%clk 0:01:24.9]} 24... Rxe5 {[%clk 0:01:02.8]} 25. Rxe5
{[%clk 0:01:22.8]} 25... Nc4 {[%clk 0:01:03]} 26. Bh3 {[%clk 0:01:16.2]} 26...
Qc6 {[%clk 0:00:51.7]} 27. Re2 {[%clk 0:01:08.6]} 27... d4 {[%clk 0:00:50.4]}
28. f3 {[%clk 0:01:07.6]} 28... Ne3 {[%clk 0:00:43.4]} 29. c3 {[%clk 0:00:53.9]}
29... Qxf3 {[%clk 0:00:39.6]} 30. Bg2 {[%clk 0:00:37.4]} 30... Qxe2 {[%clk
0:00:35.7]} 0-1

[Event "*** SCC Grand Prix: Titled Tuesday Blitz"]
[Site "Chess.com"]
[Date "2020.10.13"]
[Round "10"]
[White "Kildepiotr"]
[Black "venus02"]
[Result "1-0"]
[WhiteElo "2658"]
[BlackElo "2508"]
[TimeControl "180+1"]
[EndTime "11:54:00 PDT"]
[Termination "Kildepiotr won by resignation"]

1. Nf3 {[%clk 0:03:00.9]} 1... Nf6 {[%clk 0:02:59.2]} 2. g3 {[%clk 0:03:01]}
2... e6 {[%clk 0:02:58.7]} 3. Bg2 {[%clk 0:03:01.6]} 3... d5 {[%clk 0:02:58.8]}
4. O-O {[%clk 0:03:02.5]} 4... Be7 {[%clk 0:02:58.6]} 5. d3 {[%clk 0:03:02.7]}
5... O-O {[%clk 0:02:58.4]} 6. Nbd2 {[%clk 0:03:03.2]} 6... c5 {[%clk
0:02:58.5]} 7. e4 {[%clk 0:03:03.4]} 7... Nc6 {[%clk 0:02:58.6]} 8. Qe2 {[%clk
0:03:03.2]} 8... b5 {[%clk 0:02:57.1]} 9. e5 {[%clk 0:03:03]} 9... Nd7 {[%clk
0:02:56.8]} 10. c3 {[%clk 0:03:03.6]} 10... Qc7 {[%clk 0:02:54]} 11. Re1 {[%clk
0:03:03.5]} 11... Bb7 {[%clk 0:02:53.2]} 12. h4 {[%clk 0:03:02.3]} 12... Rfc8
{[%clk 0:02:52.5]} 13. Nf1 {[%clk 0:03:01.3]} 13... h6 {[%clk 0:02:46.3]} 14.
Bf4 {[%clk 0:03:00]} 14... Qd8 {[%clk 0:02:46.2]} 15. h5 {[%clk 0:02:58.7]}
15... a5 {[%clk 0:02:43.6]} 16. g4 {[%clk 0:02:56.6]} 16... b4 {[%clk
0:02:37.4]} 17. c4 {[%clk 0:02:56.6]} 17... Nb6 {[%clk 0:02:31.8]} 18. b3 {[%clk
0:02:55.8]} 18... Nd4 {[%clk 0:02:30.8]} 19. Nxd4 {[%clk 0:02:55.4]} 19... cxd4
{[%clk 0:02:31]} 20. Nd2 {[%clk 0:02:49.8]} 20... Bg5 {[%clk 0:02:25.6]} 21.
Bxg5 {[%clk 0:02:42.1]} 21... Qxg5 {[%clk 0:02:24.9]} 22. Rac1 {[%clk
0:02:35.2]} 22... a4 {[%clk 0:02:22.6]} 23. cxd5 {[%clk 0:02:03.6]} 23... Bxd5
{[%clk 0:02:14.6]} 24. Rxc8+ {[%clk 0:01:58.6]} 24... Rxc8 {[%clk 0:02:12.6]}
25. Nc4 {[%clk 0:01:58.5]} 25... Bxg2 {[%clk 0:00:54]} 26. Kxg2 {[%clk
0:01:59.4]} 26... Nd5 {[%clk 0:00:47.8]} 27. Qf3 {[%clk 0:01:58.7]} 27... axb3
{[%clk 0:00:47.7]} 28. axb3 {[%clk 0:01:58.3]} 28... Ra8 {[%clk 0:00:45.3]} 29.
Re4 {[%clk 0:01:48.7]} 29... Qc1 {[%clk 0:00:40.3]} 30. Nd6 {[%clk 0:01:44]}
30... f5 {[%clk 0:00:21.7]} 31. exf6 {[%clk 0:01:37.7]} 31... Ra1 {[%clk
0:00:21.4]} 32. f7+ {[%clk 0:01:26.2]} 32... Kf8 {[%clk 0:00:21.4]} 33. Kh3
{[%clk 0:01:18.8]} 33... Qf1+ {[%clk 0:00:19.8]} 34. Qg2 {[%clk 0:01:18.6]}
34... Qxd3+ {[%clk 0:00:19.5]} 35. Kh2 {[%clk 0:01:18.7]} 35... Qc3 {[%clk
0:00:15.8]} 36. Rxe6 {[%clk 0:01:11.7]} 36... Qc6 {[%clk 0:00:13.6]} 37. Re8+
{[%clk 0:01:10.9]} 1-0

[Event "*** SCC Grand Prix: Titled Tuesday Blitz"]
[Site "Chess.com"]
[Date "2020.10.13"]
[Round "10"]
[White "TimofeevAr"]
[Black "Mazetovic"]
[Result "1/2-1/2"]
[WhiteElo "2804"]
[BlackElo "2641"]
[TimeControl "180+1"]
[EndTime "11:54:05 PDT"]
[Termination "Game drawn by repetition"]

1. Nf3 {[%clk 0:03:00.9]} 1... Nf6 {[%clk 0:02:59.1]} 2. d3 {[%clk 0:02:58.8]}
2... g6 {[%clk 0:03:00]} 3. Nc3 {[%clk 0:02:55.7]} 3... Bg7 {[%clk 0:03:00.9]}
4. e4 {[%clk 0:02:55.7]} 4... O-O {[%clk 0:03:01.1]} 5. Be3 {[%clk 0:02:55.2]}
5... d6 {[%clk 0:03:00.5]} 6. Qd2 {[%clk 0:02:55.2]} 6... c5 {[%clk 0:02:59.9]}
7. Bh6 {[%clk 0:02:54.5]} 7... Nc6 {[%clk 0:02:59.3]} 8. Bxg7 {[%clk 0:02:53.2]}
8... Kxg7 {[%clk 0:02:59]} 9. d4 {[%clk 0:02:51.9]} 9... cxd4 {[%clk 0:02:55.4]}
10. Nxd4 {[%clk 0:02:51.8]} 10... Qb6 {[%clk 0:02:48.4]} 11. Nb3 {[%clk
0:02:48.8]} 11... a5 {[%clk 0:02:40.4]} 12. O-O-O {[%clk 0:02:33.2]} 12... a4
{[%clk 0:02:37.6]} 13. Nd4 {[%clk 0:02:33.3]} 13... a3 {[%clk 0:02:30.6]} 14. b3
{[%clk 0:02:33.1]} 14... Nb4 {[%clk 0:02:23.1]} 15. Kb1 {[%clk 0:02:30.4]} 15...
Bd7 {[%clk 0:02:21.7]} 16. f3 {[%clk 0:02:14.9]} 16... Rfc8 {[%clk 0:02:21]} 17.
Bb5 {[%clk 0:01:56.8]} 17... Rc5 {[%clk 0:01:35.5]} 18. Bxd7 {[%clk 0:01:55.4]}
18... Nxd7 {[%clk 0:01:35.2]} 19. Nd5 {[%clk 0:01:38.8]} 19... Nxd5 {[%clk
0:01:31.5]} 20. exd5 {[%clk 0:01:39.1]} 20... Ne5 {[%clk 0:01:21.4]} 21. Qe3
{[%clk 0:01:31]} 21... Kg8 {[%clk 0:01:04.6]} 22. f4 {[%clk 0:01:26.9]} 22...
Ng4 {[%clk 0:00:45.2]} 23. Qxe7 {[%clk 0:00:58.1]} 23... Nf2 {[%clk 0:00:41.8]}
24. Ne6 {[%clk 0:00:46.2]} 24... Nxd1 {[%clk 0:00:21.9]} 25. Rxd1 {[%clk
0:00:41]} 25... fxe6 {[%clk 0:00:14.4]} 26. Qxe6+ {[%clk 0:00:40.1]} 26... Kf8
{[%clk 0:00:13.8]} 27. Qf6+ {[%clk 0:00:35.8]} 27... Kg8 {[%clk 0:00:14.1]} 28.
Qe6+ {[%clk 0:00:35.9]} 28... Kg7 {[%clk 0:00:13.9]} 29. Qe7+ {[%clk 0:00:35.8]}
29... Kg8 {[%clk 0:00:14.2]} 30. Qe6+ {[%clk 0:00:36.1]} 1/2-1/2